{"text_format":"3","workbook":"xlsx","n_sheets":4,"sheets":["Start","Trouwbudget","Gespecificeerde kosten","Vervolg gespecificeerde kosten"],"not_rendered":{"charts":1,"images":2,"defined_names":21},"read":"whole","date_system":"1900"}

{"sheet":"Start","index":0,"n_rows":9,"n_cols":2,"rows_kept":9}
[]
[null,"OVER DEZE SJABLOON"]
[]
[null,"Gebruik deze sjabloon om de uitgaven voor uw bruiloft bij te houden."]
[null,"Voer de geschatte en de werkelijk gemaakte kosten in verschillende categorieën in op afzonderlijke werkbladen."]
[null,"Het overzicht en de grafiek van het trouwbudget worden automatisch voor u bijgewerkt."]
[null,"Notitie: "]
[null,"Kolom A van elk werkblad bevat aanvullende instructies. Deze tekst is opzettelijk verborgen. Als u tekst wilt verwijderen, selecteert u kolom A en drukt u op DELETE. "]
[null,"Als u meer wilt weten over tabellen, drukt u in een tabel op Shift en F10, selecteert u de optie TABEL en vervolgens VERVANGENDE TEKST."]

{"sheet":"Trouwbudget","index":1,"n_rows":17,"n_cols":5,"rows_kept":17,"merged":[[3,1,3,3],[17,1,40,4]]}
[]
["Maak een trouwbudget in dit werkblad. Voer details in in tabellen op de werkbladen Kleding-receptie-muziek-foto en Versiering-bloemen-cadeaus-reis om het overzicht en de grafiek op het huidige werkblad bij te werken. Cellen in deze kolom bevatten handige instructies voor het gebruik van dit werkblad. Het label Trouwdatum staat in cel C1.","Trouwdatum:",null,"Aantal resterende dagen:"]
["Voer in cel C2 de trouwdatum in. Het aantal resterende dagen wordt automatisch berekend in cel E2.","2023-09-23",null,{"$f":"B3-TODAY()","v":179}]
[null,"Overzicht trouwbudget"]
[]
["De tabel Budgetoverzicht die in C6 begint, wordt automatisch bijgewerkt. De volgende instructie staat in cel A19.","CATEGORIE","GESCHAT","WERKELIJK","BOVEN/ONDER"]
[null,"Reizen",{"$f":"Reiskosten_vervoer_totaal_geschat","v":{"v":100,"d":"100.00"}},{"$f":"Reiskosten_vervoer_totaal_werkelijk","v":{"v":165,"d":"165.00"}},{"$f":"Budgetoverzicht[[#This Row],[GESCHAT]]-Budgetoverzicht[[#This Row],[WERKELIJK]]","v":{"v":-65,"d":"-65.00"}}]
[null,"Muziek",{"$f":"Muziek_entertainment_totaal_geschat","v":{"v":600,"d":"600.00"}},{"$f":"Muziek_entertainment_totaal_werkelijk","v":{"v":400,"d":"400.00"}},{"$f":"Budgetoverzicht[[#This Row],[GESCHAT]]-Budgetoverzicht[[#This Row],[WERKELIJK]]","v":{"v":200,"d":"200.00"}}]
[null,"Decoraties",{"$f":"Versiering_totaal_geschat","v":{"v":700,"d":"700.00"}},{"$f":"Versiering_totaal_werkelijk","v":{"v":720,"d":"720.00"}},{"$f":"Budgetoverzicht[[#This Row],[GESCHAT]]-Budgetoverzicht[[#This Row],[WERKELIJK]]","v":{"v":-20,"d":"-20.00"}}]
[null,"Bloemen",{"$f":"Bloemen_totaal_geschat","v":{"v":900,"d":"900.00"}},{"$f":"Bloemen_totaal_werkelijk","v":{"v":850,"d":"850.00"}},{"$f":"Budgetoverzicht[[#This Row],[GESCHAT]]-Budgetoverzicht[[#This Row],[WERKELIJK]]","v":{"v":50,"d":"50.00"}}]
[null,"Drukwerk",{"$f":"Drukwerk_briefpapier_totaal_geschat","v":{"v":935,"d":"935.00"}},{"$f":"Drukwerk_briefpapier_totaal_werkelijk","v":{"v":870,"d":"870.00"}},{"$f":"Budgetoverzicht[[#This Row],[GESCHAT]]-Budgetoverzicht[[#This Row],[WERKELIJK]]","v":{"v":65,"d":"65.00"}}]
[null,"Receptie",{"$f":"Receptie_totaal_geschat","v":{"v":1050,"d":"1,050.00"}},{"$f":"Receptie_totaal_werkelijk","v":{"v":928,"d":"928.00"}},{"$f":"Budgetoverzicht[[#This Row],[GESCHAT]]-Budgetoverzicht[[#This Row],[WERKELIJK]]","v":{"v":122,"d":"122.00"}}]
[null,"Overige",{"$f":"Overige_uitgaven_totaal_geschat","v":{"v":885,"d":"885.00"}},{"$f":"Overige_uitgaven_totaal_werkelijk","v":{"v":1021,"d":"1,021.00"}},{"$f":"Budgetoverzicht[[#This Row],[GESCHAT]]-Budgetoverzicht[[#This Row],[WERKELIJK]]","v":{"v":-136,"d":"-136.00"}}]
[null,"Geschenken",{"$f":"Cadeaus_totaal_geschat","v":{"v":1345,"d":"1,345.00"}},{"$f":"Cadeaus_totaal_werkelijk","v":{"v":1075,"d":"1,075.00"}},{"$f":"Budgetoverzicht[[#This Row],[GESCHAT]]-Budgetoverzicht[[#This Row],[WERKELIJK]]","v":{"v":270,"d":"270.00"}}]
[null,"Fotografie",{"$f":"Fotografie_totaal_geschat","v":{"v":1625,"d":"1,625.00"}},{"$f":"Fotografie_totaal_werkelijk","v":{"v":1575,"d":"1,575.00"}},{"$f":"Budgetoverzicht[[#This Row],[GESCHAT]]-Budgetoverzicht[[#This Row],[WERKELIJK]]","v":{"v":50,"d":"50.00"}}]
[null,"Kleding",{"$f":"Kleding_totaal_geschat","v":{"v":9490,"d":"9,490.00"}},{"$f":"Kleding_totaal_werkelijk","v":{"v":9770,"d":"9,770.00"}},{"$f":"Budgetoverzicht[[#This Row],[GESCHAT]]-Budgetoverzicht[[#This Row],[WERKELIJK]]","v":{"v":-280,"d":"-280.00"}}]
[null,"Totale onkosten",{"$f":"SUBTOTAL(109,Budgetoverzicht[GESCHAT])","v":{"v":17630,"d":"17,630.00"}},{"$f":"SUBTOTAL(109,Budgetoverzicht[WERKELIJK])","v":{"v":17374,"d":"17,374.00"}},{"$f":"SUBTOTAL(109,Budgetoverzicht[BOVEN/ONDER])","v":{"v":256,"d":"256.00"}}]

{"sheet":"Gespecificeerde kosten","index":2,"n_rows":59,"n_cols":6,"rows_kept":59,"merged":[[1,1,1,4]]}
[]
[null,"Gespecificeerde kosten"]
[]
["Voer geschatte en werkelijke kosten in voor elke categorie in de desbetreffende tabellen in dit werkblad. Het bedrag boven of onder het budget wordt automatisch berekend. Het label Kleding staat in de cel rechts. Cellen in deze kolom bevatten handige instructies voor het gebruik van dit werkblad. Druk op de pijl-omlaag om aan de slag te gaan.","Kleding",{"$nulls":3}," "]
[" Voer de gegevens in in de tabel Kleding die begint in de cel rechts. De volgende aanwijzing staat in cel A18.","CATEGORIE","GESCHAT","WERKELIJK","BOVEN/ONDER"," "]
[null,"Verlovingsring(en)",{"v":1500,"d":"1,500.00"},{"v":1500,"d":"1,500.00"},{"$f":"'Gespecificeerde kosten'!$C6-'Gespecificeerde kosten'!$D6","v":{"v":0,"d":"0.00"}}]
[null,"Partner 1 ring",{"v":2000,"d":"2,000.00"},{"v":2300,"d":"2,300.00"},{"$f":"'Gespecificeerde kosten'!$C7-'Gespecificeerde kosten'!$D7","v":{"v":-300,"d":"-300.00 "}}]
[null,"Partner 1 jurk/smoking",{"v":3000,"d":"3,000.00"},{"v":2750,"d":"2,750.00"},{"$f":"'Gespecificeerde kosten'!$C8-'Gespecificeerde kosten'!$D8","v":{"v":250,"d":"250.00"}}]
[null,"Partner 1 sluier/hoofddeksel",{"v":500,"d":"500.00"},{"v":500,"d":"500.00"},{"$f":"'Gespecificeerde kosten'!$C9-'Gespecificeerde kosten'!$D9","v":{"v":0,"d":"0.00"}}]
[null,"Partner 1 schoenen",{"v":350,"d":"350.00"},{"v":300,"d":"300.00"},{"$f":"'Gespecificeerde kosten'!$C10-'Gespecificeerde kosten'!$D10","v":{"v":50,"d":"50.00"}}]
[null,"Partner 1 sieraden",{"v":400,"d":"400.00"},{"v":550,"d":"550.00"},{"$f":"'Gespecificeerde kosten'!$C11-'Gespecificeerde kosten'!$D11","v":{"v":-150,"d":"-150.00 "}}]
[null,"Partner 1 kousen",{"v":20,"d":"20.00"},{"v":20,"d":"20.00"},{"$f":"'Gespecificeerde kosten'!$C12-'Gespecificeerde kosten'!$D12","v":{"v":0,"d":"0.00"}}]
[null,"Partner 2 ring",{"v":300,"d":"300.00"},{"v":250,"d":"250.00"},{"$f":"'Gespecificeerde kosten'!$C13-'Gespecificeerde kosten'!$D13","v":{"v":50,"d":"50.00"}}]
[null,"Partner 2 jurk/smoking",{"v":300,"d":"300.00"},{"v":350,"d":"350.00"},{"$f":"'Gespecificeerde kosten'!$C14-'Gespecificeerde kosten'!$D14","v":{"v":-50,"d":"-50.00 "}}]
[null,"Partner 2 sluier/hoofddeksel",{"v":500,"d":"500.00"},{"v":500,"d":"500.00"},{"$f":"'Gespecificeerde kosten'!$C15-'Gespecificeerde kosten'!$D15","v":{"v":0,"d":"0.00"}}]
[null,"Partner 2 schoenen",{"v":200,"d":"200.00"},{"v":175,"d":"175.00"},{"$f":"'Gespecificeerde kosten'!$C16-'Gespecificeerde kosten'!$D16","v":{"v":25,"d":"25.00"}}]
[null,"Partner 2 sieraden",{"v":400,"d":"400.00"},{"v":550,"d":"550.00"},{"$f":"'Gespecificeerde kosten'!$C17-'Gespecificeerde kosten'!$D17","v":{"v":-150,"d":"-150.00 "}}]
[null,"Partner 2 kousen",{"v":20,"d":"20.00"},{"v":25,"d":"25.00"},{"$f":"'Gespecificeerde kosten'!$C18-'Gespecificeerde kosten'!$D18","v":{"v":-5,"d":"-5.00 "}}]
[null,"Totaal kleding",{"$f":"SUBTOTAL(109,Kleding[GESCHAT])","v":{"v":9490,"d":"9,490.00"}},{"$f":"SUBTOTAL(109,Kleding[WERKELIJK])","v":{"v":9770,"d":"9,770.00"}},{"$f":"SUBTOTAL(109,Kleding[BOVEN/ONDER])","v":{"v":-280,"d":"-280.00 "}}]
[]
["Het label Receptie staat in de cel rechts.","Receptie*"]
["Voer de receptiekosten, met uitzondering van kosten voor entertainment en versieringen, in in de tabel die in de cel rechts begint. De volgende aanwijzing staat in cel A31.","CATEGORIE","GESCHAT","WERKELIJK","BOVEN/ONDER"]
[null,"Kosten kamer/zaal",{"v":200,"d":"200.00"},{"v":150,"d":"150.00"},{"$f":"'Gespecificeerde kosten'!$C23-'Gespecificeerde kosten'!$D23","v":{"v":50,"d":"50.00"}}]
[null,"Tafels en stoelen",{"v":100,"d":"100.00"},{"v":50,"d":"50.00"},{"$f":"'Gespecificeerde kosten'!$C24-'Gespecificeerde kosten'!$D24","v":{"v":50,"d":"50.00"}}]
[null,"Eten",{"v":0,"d":"0.00"},{"v":0,"d":"0.00"},{"$f":"'Gespecificeerde kosten'!$C25-'Gespecificeerde kosten'!$D25","v":{"v":0,"d":"0.00"}}]
[null,"Drinken",{"v":0,"d":"0.00"},{"v":0,"d":"0.00"},{"$f":"'Gespecificeerde kosten'!$C26-'Gespecificeerde kosten'!$D26","v":{"v":0,"d":"0.00"}}]
[null,"Linnengoed",{"v":0,"d":"0.00"},{"v":0,"d":"0.00"},{"$f":"'Gespecificeerde kosten'!$C27-'Gespecificeerde kosten'!$D27","v":{"v":0,"d":"0.00"}}]
[null,"Taart",{"v":700,"d":"700.00"},{"v":700,"d":"700.00"},{"$f":"'Gespecificeerde kosten'!$C28-'Gespecificeerde kosten'!$D28","v":{"v":0,"d":"0.00"}}]
[null,"Aandenkens",{"v":50,"d":"50.00"},{"v":28,"d":"28.00"},{"$f":"'Gespecificeerde kosten'!$C29-'Gespecificeerde kosten'!$D29","v":{"v":22,"d":"22.00"}}]
[null,"Personeel en fooien",{"v":0,"d":"0.00"},{"v":0,"d":"0.00"},{"$f":"'Gespecificeerde kosten'!$C30-'Gespecificeerde kosten'!$D30","v":{"v":0,"d":"0.00"}}]
[null,"Totaal receptie",{"$f":"SUBTOTAL(109,Receptie[GESCHAT])","v":{"v":1050,"d":"1,050.00"}},{"$f":"SUBTOTAL(109,Receptie[WERKELIJK])","v":{"v":928,"d":"928.00"}},{"$f":"SUBTOTAL(109,Receptie[BOVEN/ONDER])","v":{"v":122,"d":"122.00"}}]
[null,"* Exclusief amusement en decoraties"]
[]
["Het label Muziek/entertainment staat in de cel rechts.","Muziek/entertainment"]
["Voer de gegevens in in de tabel Muziek die begint in de cel rechts. De volgende aanwijzing staat in cel A37.","CATEGORIE","GESCHAT","WERKELIJK","BOVEN/ONDER"]
[null,"Muzikanten voor ceremonie",{"v":400,"d":"400.00"},{"v":400,"d":"400.00"},{"$f":"'Gespecificeerde kosten'!$C36-'Gespecificeerde kosten'!$D36","v":{"v":0,"d":"0.00"}}]
[null,"Band/DJ voor receptie",{"v":200,"d":"200.00"},{"v":0,"d":"0.00"},{"$f":"'Gespecificeerde kosten'!$C37-'Gespecificeerde kosten'!$D37","v":{"v":200,"d":"200.00"}}]
[null,"Totaal muziek/amusement",{"$f":"SUBTOTAL(109,Muziek[GESCHAT])","v":{"v":600,"d":"600.00"}},{"$f":"SUBTOTAL(109,Muziek[WERKELIJK])","v":{"v":400,"d":"400.00"}},{"$f":"SUBTOTAL(109,Muziek[BOVEN/ONDER])","v":{"v":200,"d":"200.00"}}]
[]
["Het label Drukwerk/briefpapier staat in de cel rechts.","Drukwerk/briefpapier"]
["Voer de gegevens in in de tabel Drukwerk die begint in de cel rechts. De volgende aanwijzing staat in cel A50.","CATEGORIE","GESCHAT","WERKELIJK","BOVEN/ONDER"]
[null,"Uitnodigingen",{"v":500,"d":"500.00"},{"v":450,"d":"450.00"},{"$f":"'Gespecificeerde kosten'!$C42-'Gespecificeerde kosten'!$D42","v":{"v":50,"d":"50.00"}}]
[null,"Aankondigingen",{"v":200,"d":"200.00"},{"v":175,"d":"175.00"},{"$f":"'Gespecificeerde kosten'!$C43-'Gespecificeerde kosten'!$D43","v":{"v":25,"d":"25.00"}}]
[null,"Bedankkaarten",{"v":100,"d":"100.00"},{"v":100,"d":"100.00"},{"$f":"'Gespecificeerde kosten'!$C44-'Gespecificeerde kosten'!$D44","v":{"v":0,"d":"0.00"}}]
[null,"Persoonlijk briefpapier",{"v":0,"d":"0.00"},{"v":0,"d":"0.00"},{"$f":"'Gespecificeerde kosten'!$C45-'Gespecificeerde kosten'!$D45","v":{"v":0,"d":"0.00"}}]
[null,"Gastenboek",{"v":25,"d":"25.00"},{"v":25,"d":"25.00"},{"$f":"'Gespecificeerde kosten'!$C46-'Gespecificeerde kosten'!$D46","v":{"v":0,"d":"0.00"}}]
[null,"Programma's",{"v":75,"d":"75.00"},{"v":80,"d":"80.00"},{"$f":"'Gespecificeerde kosten'!$C47-'Gespecificeerde kosten'!$D47","v":{"v":-5,"d":"-5.00 "}}]
[null,"Receptieservetten",{"v":35,"d":"35.00"},{"v":40,"d":"40.00"},{"$f":"'Gespecificeerde kosten'!$C48-'Gespecificeerde kosten'!$D48","v":{"v":-5,"d":"-5.00 "}}]
[null,"Lucifersboekjes",{"v":0,"d":"0.00"},{"v":0,"d":"0.00"},{"$f":"'Gespecificeerde kosten'!$C49-'Gespecificeerde kosten'!$D49","v":{"v":0,"d":"0.00"}}]
[null,"Kalligrafie",{"v":0,"d":"0.00"},{"v":0,"d":"0.00"},{"$f":"'Gespecificeerde kosten'!$C50-'Gespecificeerde kosten'!$D50","v":{"v":0,"d":"0.00"}}]
[null,"Totaal drukwerk/briefpapier",{"$f":"SUBTOTAL(109,Drukwerk[GESCHAT])","v":{"v":935,"d":"935.00"}},{"$f":"SUBTOTAL(109,Drukwerk[WERKELIJK])","v":{"v":870,"d":"870.00"}},{"$f":"SUBTOTAL(109,Drukwerk[BOVEN/ONDER])","v":{"v":65,"d":"65.00"}}]
[]
["Het label Fotografie staat in de cel rechts.","Fotografie"]
["Voer de gegevens in de tabel Fotografie in vanaf de rechter cel.","CATEGORIE","GESCHAT","WERKELIJK","BOVEN/ONDER"]
[null,"Formele foto's",{"v":1300,"d":"1,300.00"},{"v":1300,"d":"1,300.00"},{"$f":"'Gespecificeerde kosten'!$C55-'Gespecificeerde kosten'!$D55","v":{"v":0,"d":"0.00"}}]
[null,"Extra afdrukken",{"v":25,"d":"25.00"},{"v":25,"d":"25.00"},{"$f":"'Gespecificeerde kosten'!$C56-'Gespecificeerde kosten'!$D56","v":{"v":0,"d":"0.00"}}]
[null,"Fotoalbums",{"v":100,"d":"100.00"},{"v":100,"d":"100.00"},{"$f":"'Gespecificeerde kosten'!$C57-'Gespecificeerde kosten'!$D57","v":{"v":0,"d":"0.00"}}]
[null,"Video-opnamen",{"v":200,"d":"200.00"},{"v":150,"d":"150.00"},{"$f":"'Gespecificeerde kosten'!$C58-'Gespecificeerde kosten'!$D58","v":{"v":50,"d":"50.00"}}]
[null,"Totaal fotografie",{"$f":"SUBTOTAL(109,Fotografie[GESCHAT])","v":{"v":1625,"d":"1,625.00"}},{"$f":"SUBTOTAL(109,Fotografie[WERKELIJK])","v":{"v":1575,"d":"1,575.00"}},{"$f":"SUBTOTAL(109,Fotografie[BOVEN/ONDER])","v":{"v":50,"d":"50.00"}}]

{"sheet":"Vervolg gespecificeerde kosten","index":3,"n_rows":51,"n_cols":5,"rows_kept":51,"merged":[[1,1,1,4]]}
[]
[null,"Vervolg gespecificeerde kosten"]
[]
["Voer geschatte en werkelijke kosten in voor elke categorie in de desbetreffende tabellen in dit werkblad. Het bedrag boven of onder het budget wordt automatisch berekend. Het label Versieringen staat in de cel rechts. Cellen in deze kolom bevatten handige instructies voor het gebruik van dit werkblad. Druk op de pijl-omlaag om aan de slag te gaan.","Decoraties*"]
["Voer de kosten voor versieringen, met uitzondering van bloemen, in in de tabel die in de cel rechts begint. De volgende aanwijzing staat in cel A11.","CATEGORIE","GESCHAT","WERKELIJK","BOVEN/ONDER"]
[null,"Stoelstrikken",{"v":0,"d":"0.00"},{"v":0,"d":"0.00"},{"$f":"Versieringen[[#This Row],[GESCHAT]]-Versieringen[[#This Row],[WERKELIJK]]","v":{"v":0,"d":"0.00"}}]
[null,"Tafelversieringen",{"v":300,"d":"300.00"},{"v":320,"d":"320.00"},{"$f":"Versieringen[[#This Row],[GESCHAT]]-Versieringen[[#This Row],[WERKELIJK]]","v":{"v":-20,"d":"-20.00 "}}]
[null,"Kaarsen",{"v":100,"d":"100.00"},{"v":75,"d":"75.00"},{"$f":"Versieringen[[#This Row],[GESCHAT]]-Versieringen[[#This Row],[WERKELIJK]]","v":{"v":25,"d":"25.00"}}]
[null,"Verlichting",{"v":100,"d":"100.00"},{"v":75,"d":"75.00"},{"$f":"Versieringen[[#This Row],[GESCHAT]]-Versieringen[[#This Row],[WERKELIJK]]","v":{"v":25,"d":"25.00"}}]
[null,"Ballonnen",{"v":200,"d":"200.00"},{"v":250,"d":"250.00"},{"$f":"Versieringen[[#This Row],[GESCHAT]]-Versieringen[[#This Row],[WERKELIJK]]","v":{"v":-50,"d":"-50.00 "}}]
[null,"Totaal decoraties",{"$f":"SUBTOTAL(109,Versieringen[GESCHAT])","v":{"v":700,"d":"700.00"}},{"$f":"SUBTOTAL(109,Versieringen[WERKELIJK])","v":{"v":720,"d":"720.00"}},{"$f":"SUBTOTAL(109,Versieringen[BOVEN/ONDER])","v":{"v":-20,"d":"-20.00 "}}]
[null,"*Exclusief bloemen"]
[]
["Het label Bloemen staat in de cel rechts.","Bloemen"]
["Voer de gegevens in in de tabel Bloemen die begint in de cel rechts. De volgende aanwijzing staat in cel A20.","CATEGORIE","GESCHAT","WERKELIJK","BOVEN/ONDER"]
[null,"Boeketten",{"v":500,"d":"500.00"},{"v":450,"d":"450.00"},{"$f":"Bloemen[[#This Row],[GESCHAT]]-Bloemen[[#This Row],[WERKELIJK]]","v":{"v":50,"d":"50.00"}}]
[null,"Boutonnières",{"v":0,"d":"0.00"},{"v":0,"d":"0.00"},{"$f":"Bloemen[[#This Row],[GESCHAT]]-Bloemen[[#This Row],[WERKELIJK]]","v":{"v":0,"d":"0.00"}}]
[null,"Corsages",{"v":0,"d":"0.00"},{"v":0,"d":"0.00"},{"$f":"Bloemen[[#This Row],[GESCHAT]]-Bloemen[[#This Row],[WERKELIJK]]","v":{"v":0,"d":"0.00"}}]
[null,"Ceremonie",{"v":400,"d":"400.00"},{"v":400,"d":"400.00"},{"$f":"Bloemen[[#This Row],[GESCHAT]]-Bloemen[[#This Row],[WERKELIJK]]","v":{"v":0,"d":"0.00"}}]
[null,"Receptie",{"v":0,"d":"0.00"},{"v":0,"d":"0.00"},{"$f":"Bloemen[[#This Row],[GESCHAT]]-Bloemen[[#This Row],[WERKELIJK]]","v":{"v":0,"d":"0.00"}}]
[null,"Totaal bloemen",{"$f":"SUBTOTAL(109,Bloemen[GESCHAT])","v":{"v":900,"d":"900.00"}},{"$f":"SUBTOTAL(109,Bloemen[WERKELIJK])","v":{"v":850,"d":"850.00"}},{"$f":"SUBTOTAL(109,Bloemen[BOVEN/ONDER])","v":{"v":50,"d":"50.00"}}]
[]
["Het label Cadeaus staat in de cel rechts.","Geschenken"]
["Voer de gegevens in in de tabel Cadeaus die begint in de cel rechts. De volgende aanwijzing staat in cel A29.","CATEGORIE","GESCHAT","WERKELIJK","BOVEN/ONDER"]
[null,"Gevolg",{"v":1000,"d":"1,000.00"},{"v":400,"d":"400.00"},{"$f":"Geschenken[[#This Row],[GESCHAT]]-Geschenken[[#This Row],[WERKELIJK]]","v":{"v":600,"d":"600.00"}}]
[null,"Partner 1",{"v":150,"d":"150.00"},{"v":200,"d":"200.00"},{"$f":"Geschenken[[#This Row],[GESCHAT]]-Geschenken[[#This Row],[WERKELIJK]]","v":{"v":-50,"d":"-50.00 "}}]
[null,"Partner 2",{"v":150,"d":"150.00"},{"v":200,"d":"200.00"},{"$f":"Geschenken[[#This Row],[GESCHAT]]-Geschenken[[#This Row],[WERKELIJK]]","v":{"v":-50,"d":"-50.00 "}}]
[null,"Ouders",{"v":25,"d":"25.00"},{"v":25,"d":"25.00"},{"$f":"Geschenken[[#This Row],[GESCHAT]]-Geschenken[[#This Row],[WERKELIJK]]","v":{"v":0,"d":"0.00"}}]
[null,"Sprekers/overige deelnemers",{"v":20,"d":"20.00"},{"v":250,"d":"250.00"},{"$f":"Geschenken[[#This Row],[GESCHAT]]-Geschenken[[#This Row],[WERKELIJK]]","v":{"v":-230,"d":"-230.00 "}}]
[null,"Totaal geschenken",{"$f":"SUBTOTAL(109,Geschenken[GESCHAT])","v":{"v":1345,"d":"1,345.00"}},{"$f":"SUBTOTAL(109,Geschenken[WERKELIJK])","v":{"v":1075,"d":"1,075.00"}},{"$f":"SUBTOTAL(109,Geschenken[BOVEN/ONDER])","v":{"v":270,"d":"270.00"}}]
[]
["Het label reis-/vervoerskosten staat in de cel rechts.","Reis-/vervoerskosten"]
["Voer de gegevens in in de tabel Reiskosten die begint in de cel rechts. De volgende aanwijzing staat in cel A36.","CATEGORIE","GESCHAT","WERKELIJK","BOVEN/ONDER"]
[null,"Limousines/trolleybussen",{"v":100,"d":"100.00"},{"v":125,"d":"125.00"},{"$f":"Reiskosten[[#This Row],[GESCHAT]]-Reiskosten[[#This Row],[WERKELIJK]]","v":{"v":-25,"d":"-25.00 "}}]
[null,"Parkeren",{"v":0,"d":"0.00"},{"v":40,"d":"40.00"},{"$f":"Reiskosten[[#This Row],[GESCHAT]]-Reiskosten[[#This Row],[WERKELIJK]]","v":{"v":-40,"d":"-40.00 "}}]
[null,"Taxi's",{"v":0,"d":"0.00"},{"v":0,"d":"0.00"},{"$f":"Reiskosten[[#This Row],[GESCHAT]]-Reiskosten[[#This Row],[WERKELIJK]]","v":{"v":0,"d":"0.00"}}]
[null,"Totaal reis-/vervoerskosten",{"$f":"SUBTOTAL(109,Reiskosten[GESCHAT])","v":{"v":100,"d":"100.00"}},{"$f":"SUBTOTAL(109,Reiskosten[WERKELIJK])","v":{"v":165,"d":"165.00"}},{"$f":"SUBTOTAL(109,Reiskosten[BOVEN/ONDER])","v":{"v":-65,"d":"-65.00 "}}]
[]
["Het label Overige uitgaven staat in de cel rechts.","Overige onkosten"]
["Voer de gegevens in de tabel Overige onkosten in vanaf de cel rechts.","CATEGORIE","GESCHAT","WERKELIJK","BOVEN/ONDER"]
[null,"Officiant",{"v":0,"d":"0.00"},{"v":0,"d":"0.00"},{"$f":"OtherExpenses[[#This Row],[GESCHAT]]-OtherExpenses[[#This Row],[WERKELIJK]]","v":{"v":0,"d":"0.00"}}]
[null,"Kosten kerk/ceremonielocatie",{"v":40,"d":"40.00"},{"v":55,"d":"55.00"},{"$f":"OtherExpenses[[#This Row],[GESCHAT]]-OtherExpenses[[#This Row],[WERKELIJK]]","v":{"v":-15,"d":"-15.00 "}}]
[null,"Bruiloftscoördinator",{"v":0,"d":"0.00"},{"v":0,"d":"0.00"},{"$f":"OtherExpenses[[#This Row],[GESCHAT]]-OtherExpenses[[#This Row],[WERKELIJK]]","v":{"v":0,"d":"0.00"}}]
[null,"Repetitiediner",{"v":450,"d":"450.00"},{"v":450,"d":"450.00"},{"$f":"OtherExpenses[[#This Row],[GESCHAT]]-OtherExpenses[[#This Row],[WERKELIJK]]","v":{"v":0,"d":"0.00"}}]
[null,"Verlovingsfeest",{"v":20,"d":"20.00"},{"v":50,"d":"50.00"},{"$f":"OtherExpenses[[#This Row],[GESCHAT]]-OtherExpenses[[#This Row],[WERKELIJK]]","v":{"v":-30,"d":"-30.00 "}}]
[null,"Showers",{"v":30,"d":"30.00"},{"v":20,"d":"20.00"},{"$f":"OtherExpenses[[#This Row],[GESCHAT]]-OtherExpenses[[#This Row],[WERKELIJK]]","v":{"v":10,"d":"10.00"}}]
[null,"Schoonheidssalon",{"v":45,"d":"45.00"},{"v":46,"d":"46.00"},{"$f":"OtherExpenses[[#This Row],[GESCHAT]]-OtherExpenses[[#This Row],[WERKELIJK]]","v":{"v":-1,"d":"-1.00 "}}]
[null,"Vrijgezellenfeesten",{"v":0,"d":"0.00"},{"v":0,"d":"0.00"},{"$f":"OtherExpenses[[#This Row],[GESCHAT]]-OtherExpenses[[#This Row],[WERKELIJK]]","v":{"v":0,"d":"0.00"}}]
[null,"Brunch",{"v":300,"d":"300.00"},{"v":400,"d":"400.00"},{"$f":"OtherExpenses[[#This Row],[GESCHAT]]-OtherExpenses[[#This Row],[WERKELIJK]]","v":{"v":-100,"d":"-100.00 "}}]
[null,"Hotelkamers",{"v":0,"d":"0.00"},{"v":0,"d":"0.00"},{"$f":"OtherExpenses[[#This Row],[GESCHAT]]-OtherExpenses[[#This Row],[WERKELIJK]]","v":{"v":0,"d":"0.00"}}]
[null,"Totaal overige onkosten",{"$f":"SUBTOTAL(109,OtherExpenses[GESCHAT])","v":{"v":885,"d":"885.00"}},{"$f":"SUBTOTAL(109,OtherExpenses[WERKELIJK])","v":{"v":1021,"d":"1,021.00"}},{"$f":"SUBTOTAL(109,OtherExpenses[BOVEN/ONDER])","v":{"v":-136,"d":"-136.00 "}}]